Workbook

Sheet Instructions
A1: Manufacturer | B1: Laticrete Strata Heat
A2: File as | B2: L
A3: Product Code | B3: N
A4: CCTD Effective Date | B4: 6/1/25
A8: Enter your Company Name
B10: Click on "Index" to set the print area for the price list index
B11: Then you can send it to print
B14: Click on "Suggested Price List" to set the print area for Conestoga Tile's suggested price list.
B15: Then you can send it to print
B18: Enter your discount codes if you want a personal net cost sheet.
B20: Product
B21: Code | C21: Disc. %
B22: =+B3 -> N | C22: 0 | D22: This is a "NET" price list. 0% is the discount for this spreadsheet
B24: Click on "Your Cost" to set the print area for your personal cost report.
B25: Then you can send it to print
A28: Discount: | B28: To help establish your price list, enter the gross profit percent for each type of product.
B29: If you want to use Conestoga Tile's list price, leave them blank.
A31: Round Nickel: | B31: If you always want your price to round to the nearest nickel, enter "YES".
B32: If you enter "NO", it will NOT round to the nearest nickel.
A34: Ending Cents: | B34: If you always want your price to end with a certain cents, enter that cent value.
B35: If you leave it "blank" will NOT round to this cent value.
B37: Group | C37: GP Margin | D37: GP Margin % for | F37: Round Nickel | G37: add/subtract | H37: Ending Cents
B38: 1 | D38: Field Tile | F38: No | G38: 0
B39: 2 | D39: Trim | F39: No | G39: 0
B40: 3 | D40: Decos | F40: No | G40: 0
B41: 4 | D41: 0 | F41: No | G41: 0
B42: 5 | D42: 0 | F42: No | G42: 0
B43: 6 | D43: 0 | F43: No | G43: 0
B44: 7 | D44: 0 | F44: No | G44: 0
A46: If you want to manually adjust your price list, hit "F5" and go to "Customer_Cost" to manually adjust pricing.
A47: You can enter a value in the column labeled "Adj." to change your price manually.
B49: Click on "Your Price Calculation" to set the print area for your personal cost calculation report.
B50: Then you can send it to print
B53: Click on "Your Price List" to set the print area for your personal price list.
B54: Then you can send it to print
H55: Yes
A57: If you have any questions on how to best use this spreadsheet, please feel free to contact
A58: Jim Vogel at (800) 422-6860, ext. 4201 or via e-mail at jimvogel@cctd.com

Sheet Index
F3: ="File '"&Instructions!B2&"' - "&Instructions!B1 -> File 'L' - Laticrete Strata Heat
A6: ="Price List Index - "&Instructions!B4 -> Price List Index - 6/1/25
A11: Page | C11: Series | E11: Product Type | G11: Page | I11: Series | K11: Product Type
A49: This price list is available electronically on an Excel spreadsheet at www.conestogatile.com/pricelists.
A51: The spreadsheet has many special features to assist you. Apply your discount to generate your net costs for your purchasing department. Apply your standard gross margin percentage or custom prices to generate your own custom price list for your showroom. Print out individual price list for each series that can be attached to the back of your sample boards for easy reference.

Sheet Price List
B1: Field Tile | E1: Size | G1: Field | V1: SF/CTN | Y1: =IF(Suggested="Yes",'Price List'!AG1,'Price List'!AM1) -> 0 | Z1: SF | AA1: =+Instructions!$B$3 -> N | AC1: =+Instructions!$C$22 -> 0 | AD1: =ROUND($AG1*(1-AC1)+0.004999,2) -> 0 | AF1: new | AG1: 0 | AH1: =+AC1 -> 0 | AI1: 0 | AJ1: =(AM1-AI1)/AM1 ->  | AL1: 1 | AM1: =SUM(AP1:AR1)+AK1 -> 0 | AP1: =ROUND(AI1/(1-VLOOKUP(AL1,Group,2,FALSE)),2) -> 0 | AQ1: =IF(VLOOKUP(AL1,Group,5,FALSE)="YES",VLOOKUP(ROUND(ROUND(AP1,1)-AP1,2),Round,2,FALSE)+VLOOKUP(AL1,Group,6,FALSE),0) -> 0 | AR1: =IF(VLOOKUP(AL1,Group,7,FALSE)="",0,ROUND(AP1-0.04999,1)-AP1+AS1) -> 0 | AS1: =IF(VLOOKUP(AL1,Group,7,FALSE)="","",VLOOKUP(AL1,Group,7,FALSE)) ->  | AU1: X
B2: Trim | E2: Size | G2: Shape | J2: Description | Y2: =IF(Suggested="Yes",'Price List'!AG2,'Price List'!AM2) -> 0.05 | Z2: EA | AA2: =+Instructions!$B$3 -> N | AC2: =+Instructions!$C$22 -> 0 | AD2: 0.05 | AF2: new | AG2: 0.05 | AH2: 0 | AI2: 0.05 | AJ2: 0 | AL2: 2 | AM2: 0.05 | AP2: 0.05 | AQ2: 0 | AR2: 0 | AU2: X
B3: Decos | E3: Size | G3: Shape | J3: Description | Y3: =IF(Suggested="Yes",'Price List'!AG3,'Price List'!AM3) -> 0 | Z3: EA | AA3: =+Instructions!$B$3 -> N | AC3: =+Instructions!$C$22 -> 0 | AD3: 0 | AF3: new | AG3: 0 | AH3: 0 | AI3: 0 | AL3: 3 | AM3: 0 | AP3: 0 | AQ3: 0 | AR3: 0 | AU3: X
B4: 0 | E4: Size | G4: Shape | J4: Description | Y4: =IF(Suggested="Yes",'Price List'!AG4,'Price List'!AM4) -> 0 | Z4: EA | AA4: =+Instructions!$B$3 -> N | AC4: =+Instructions!$C$22 -> 0 | AD4: 0 | AF4: new | AG4: 0 | AH4: 0 | AI4: 0 | AL4: 4 | AM4: 0 | AP4: 0 | AQ4: 0 | AR4: 0 | AU4: X
B5: 0 | E5: Size | G5: Shape | J5: Description | Y5: =IF(Suggested="Yes",'Price List'!AG5,'Price List'!AM5) -> 0 | Z5: EA | AA5: =+Instructions!$B$3 -> N | AC5: =+Instructions!$C$22 -> 0 | AD5: 0 | AF5: new | AG5: 0 | AH5: 0 | AI5: 0 | AL5: 5 | AM5: 0 | AP5: 0 | AQ5: 0 | AR5: 0 | AU5: X
B6: 0 | E6: Size | G6: Shape | J6: Description | Y6: =IF(Suggested="Yes",'Price List'!AG6,'Price List'!AM6) -> 0 | Z6: EA | AA6: =+Instructions!$B$3 -> N | AC6: =+Instructions!$C$22 -> 0 | AD6: 0 | AF6: new | AG6: 0 | AH6: 0 | AI6: 0 | AL6: 6 | AM6: 0 | AP6: 0 | AQ6: 0 | AR6: 0 | AU6: X
B7: 0 | E7: Size | G7: Shape | J7: Description | Y7: =IF(Suggested="Yes",'Price List'!AG7,'Price List'!AM7) -> 0 | Z7: EA | AA7: =+Instructions!$B$3 -> N | AC7: =+Instructions!$C$22 -> 0 | AD7: 0 | AF7: new | AG7: 0 | AH7: 0 | AI7: 0 | AL7: 7 | AM7: 0 | AP7: 0 | AQ7: 0 | AR7: 0 | AU7: X
B8: Format | W8: Stock | X8: a | Y8: 1000 | Z8: ABC | AC8: 0.1 | AD8: 1000 | AF8: ABC | AG8: 1000 | AH8: 0.1 | AI8: 1000 | AJ8: 0.1 | AK8: 10 | AM8: 1000 | AU8: X
AU9: X
U10: Price List | AC10: Cust. Cost | AF10: Customer Cost Calculation | AU10: X
D11: Sizes & Shapes | U11: Full Carton | W11: Stock | X11: Note | Y11: =IF(Suggested="Yes",AG11,AM11) -> Net Price | Z11: U/M | AA11: Code | AC11: Disc. | AD11: Net | AF11: Chg | AG11: Net Price | AH11: Disc | AI11: Act. Cost | AJ11: GP% | AK11: Adj. | AL11: Group | AM11: Price | AP11: Calc Price | AQ11: .05 Round | AR11: Cents | AS11: Round to | AU11: X
AU12: X
S13: ="File '"&Instructions!B2&"' - "&Instructions!B1 -> File 'L' - Laticrete Strata Heat | AC13: Cost | AM13: Retail Price Calculations | AU13: X
Z14: =+Instructions!B4 -> 6/1/25 | AK14: =TODAY() -> 2025-05-16 | AU14: X
T15: =IF(Instructions!C8="","",+Instructions!C8) ->  | AU15: X
C16: ="Product Code '"&Instructions!B3&"'" -> Product Code 'N' | AM16: =IF(Instructions!$C$8="","",Instructions!$C$8) ->  | AU16: X
AU17: X
C18: Sizes & Shapes | U18: Full Carton | W18: Stock | X18: Note | Y18: =+Y$11 -> Net Price | Z18: U/M | AA18: =+AA$11 -> Code | AC18: Disc. | AD18: Net | AF18: Chg | AG18: Net Price | AH18: =+AH$11 -> Disc | AI18: Act. Cost | AJ18: GP% | AK18: Adj. | AL18: =+AL$11 -> Group | AM18: Price | AP18: Calc Price | AQ18: .05 Round | AR18: Cents | AS18: Round to | AU18: X
C19: ALL ITEMS MARKED WITH PACKAGING QUANTITY ARE SOLD IN MULTIPLES OF THAT QUANTITY ONLY | AU19: X
AU20: X
C21: PRICING LISTED IS NET PRICING. TRADE DISCOUNTS DO NOT APPLY.
C23: STRATA HEAT MAT | X23: Item # Lookup: | Y23: LTSH0M | AU23: X
AU24: X
B25: Trim | E25: 3' 3" x 49' 6" x 1/4" | G25: 0179-0161-H | N25: 161 SF/Roll | W25: Stock | Y25: =IF(Suggested="Yes",'Price List'!AG25,'Price List'!AM25) -> 439.4 | Z25: Roll | AA25: =+Instructions!$B$3 -> N | AC25: =+Instructions!$C$22 -> 0 | AD25: =ROUND($AG25*(1-AC25)+0.004999,2) -> 439.4 | AF25: YES | AG25: 439.4 | AH25: =+AC25 -> 0 | AI25: =+AD25 -> 439.4 | AJ25: =(AM25-AI25)/AM25 -> 0 | AL25: 2 | AM25: =SUM(AP25:AR25)+AK25 -> 439.4 | AP25: =ROUND(AI25/(1-VLOOKUP(AL25,Group,2,FALSE)),2) -> 439.4 | AQ25: =IF(VLOOKUP(AL25,Group,5,FALSE)="YES",VLOOKUP(ROUND(ROUND(AP25,1)-AP25,2),Round,2,FALSE)+VLOOKUP(AL25,Group,6,FALSE),0) -> 0 | AR25: =IF(VLOOKUP(AL25,Group,7,FALSE)="",0,ROUND(AP25-0.04999,1)-AP25+AS25) -> 0 | AS25: =IF(VLOOKUP(AL25,Group,7,FALSE)="","",VLOOKUP(AL25,Group,7,FALSE)) ->  | AU25: X
B26: Trim | E26: 3' 3" x 2' 6.3" x 1/4" | G26: 0179-1082-H | N26: 8.60 SF/Sheet | W26: Stock | Y26: =IF(Suggested="Yes",'Price List'!AG26,'Price List'!AM26) -> 28.25 | Z26: Sheet | AA26: =+Instructions!$B$3 -> N | AC26: =+Instructions!$C$22 -> 0 | AD26: =ROUND($AG26*(1-AC26)+0.004999,2) -> 28.25 | AF26: YES | AG26: 28.25 | AH26: =+AC26 -> 0 | AI26: =+AD26 -> 28.25 | AJ26: =(AM26-AI26)/AM26 -> 0 | AL26: 2 | AM26: =SUM(AP26:AR26)+AK26 -> 28.25 | AP26: =ROUND(AI26/(1-VLOOKUP(AL26,Group,2,FALSE)),2) -> 28.25 | AQ26: =IF(VLOOKUP(AL26,Group,5,FALSE)="YES",VLOOKUP(ROUND(ROUND(AP26,1)-AP26,2),Round,2,FALSE)+VLOOKUP(AL26,Group,6,FALSE),0) -> 0 | AR26: =IF(VLOOKUP(AL26,Group,7,FALSE)="",0,ROUND(AP26-0.04999,1)-AP26+AS26) -> 0 | AS26: =IF(VLOOKUP(AL26,Group,7,FALSE)="","",VLOOKUP(AL26,Group,7,FALSE)) ->  | AU26: X
B27: Trim | E27: 3' 3" x 2' 6.3" x 1/4" | G27: 0179-5082-H | N27: 8.60 SF/Sheet | V27: 50 Sheets/CTN | Y27: =IF(Suggested="Yes",'Price List'!AG27,'Price List'!AM27) -> 26.65 | Z27: Sheet | AA27: =+Instructions!$B$3 -> N | AC27: =+Instructions!$C$22 -> 0 | AD27: =ROUND($AG27*(1-AC27)+0.004999,2) -> 26.65 | AF27: YES | AG27: 26.65 | AH27: =+AC27 -> 0 | AI27: =+AD27 -> 26.65 | AJ27: =(AM27-AI27)/AM27 -> 0 | AL27: 2 | AM27: =SUM(AP27:AR27)+AK27 -> 26.65 | AP27: =ROUND(AI27/(1-VLOOKUP(AL27,Group,2,FALSE)),2) -> 26.65 | AQ27: =IF(VLOOKUP(AL27,Group,5,FALSE)="YES",VLOOKUP(ROUND(ROUND(AP27,1)-AP27,2),Round,2,FALSE)+VLOOKUP(AL27,Group,6,FALSE),0) -> 0 | AR27: =IF(VLOOKUP(AL27,Group,7,FALSE)="",0,ROUND(AP27-0.04999,1)-AP27+AS27) -> 0 | AS27: =IF(VLOOKUP(AL27,Group,7,FALSE)="","",VLOOKUP(AL27,Group,7,FALSE)) ->  | AU27: X
D29: Notes: | E29: a) STRATA HEAT Mat combines the comfort of floor heating wire with the advantages associated with an uncoupling membrane.
E30: STRATA HEAT Mat will provide faster drying of the mortar while allowing for shorter time to grout. At the same time it will easily
E31: hold the STRATA HEAT Wire in 2, 3 or 4 peg positions for floor heating or warming installations. It is specifically designed for use
E32: with both modified and unmodified mortars, you can use the appropriate mortar for the installation.
C34: STRATA HEAT WIRE 120 V & 240 V | X34: Item # Lookup: | Y34: LTSH | AU34: X
AU35: X
G36: Linear Feet per Spool | J36: Total SF 3 Pegs 13 Watts /SF | M36: Total SF 4 Pegs 10 Watts /SF | P36: Total SF 3" Spacing 16 Watts /SF | S36: Total SF 4" Spacing 12 Watts /SF | AU36: X
C37: STRATA HEAT Wire 120 V | J37: Uncoupling Systems | P37: Spacing Strips | AU37: X
AU38: X
B39: Trim | E39: 0804-0050-2 | G39: 50 | J39: 15 | M39: 20 | P39: 12 | S39: 17 | W39: Stock | Y39: =IF(Suggested="Yes",'Price List'!AG39,'Price List'!AM39) -> 209.7 | Z39: EA | AA39: =+Instructions!$B$3 -> N | AC39: =+Instructions!$C$22 -> 0 | AD39: =ROUND($AG39*(1-AC39)+0.004999,2) -> 209.7 | AF39: YES | AG39: 209.7 | AH39: =+AC39 -> 0 | AI39: =+AD39 -> 209.7 | AJ39: =(AM39-AI39)/AM39 -> 0 | AL39: 2 | AM39: =SUM(AP39:AR39)+AK39 -> 209.7 | AP39: =ROUND(AI39/(1-VLOOKUP(AL39,Group,2,FALSE)),2) -> 209.7 | AQ39: =IF(VLOOKUP(AL39,Group,5,FALSE)="YES",VLOOKUP(ROUND(ROUND(AP39,1)-AP39,2),Round,2,FALSE)+VLOOKUP(AL39,Group,6,FALSE),0) -> 0 | AR39: =IF(VLOOKUP(AL39,Group,7,FALSE)="",0,ROUND(AP39-0.04999,1)-AP39+AS39) -> 0 | AS39: =IF(VLOOKUP(AL39,Group,7,FALSE)="","",VLOOKUP(AL39,Group,7,FALSE)) ->  | AU39: X
B40: Trim | E40: 0804-0067-2 | G40: 67 | J40: 20 | M40: 27 | P40: 17 | S40: 22 | W40: Stock | Y40: =IF(Suggested="Yes",'Price List'!AG40,'Price List'!AM40) -> 237.45 | Z40: EA | AA40: =+Instructions!$B$3 -> N | AC40: =+Instructions!$C$22 -> 0 | AD40: 237.45 | AF40: YES | AG40: 237.45 | AH40: 0 | AI40: 237.45 | AJ40: 0 | AL40: 2 | AM40: 237.45 | AP40: 237.45 | AQ40: 0 | AR40: 0 | AU40: X
B41: Trim | E41: 0804-0084-2 | G41: 84 | J41: 25 | M41: 33 | P41: 21 | S41: 28 | W41: Stock | Y41: =IF(Suggested="Yes",'Price List'!AG41,'Price List'!AM41) -> 261.1 | Z41: EA | AA41: =+Instructions!$B$3 -> N | AC41: =+Instructions!$C$22 -> 0 | AD41: 261.1 | AF41: YES | AG41: 261.1 | AH41: 0 | AI41: 261.1 | AJ41: 0 | AL41: 2 | AM41: 261.1 | AP41: 261.1 | AQ41: 0 | AR41: 0 | AU41: X
B42: Trim | E42: 0804-0100-2 | G42: 100 | J42: 30 | M42: 40 | P42: 25 | S42: 33 | W42: Stock | Y42: =IF(Suggested="Yes",'Price List'!AG42,'Price List'!AM42) -> 270.35 | Z42: EA | AA42: =+Instructions!$B$3 -> N | AC42: =+Instructions!$C$22 -> 0 | AD42: 270.35 | AF42: YES | AG42: 270.35 | AH42: 0 | AI42: 270.35 | AJ42: 0 | AL42: 2 | AM42: 270.35 | AP42: 270.35 | AQ42: 0 | AR42: 0 | AU42: X
B43: Trim | E43: 0804-0133-2 | G43: 133 | J43: 40 | M43: 53 | P43: 33 | S43: 44 | W43: Stock | Y43: =IF(Suggested="Yes",'Price List'!AG43,'Price List'!AM43) -> 317.6 | Z43: EA | AA43: =+Instructions!$B$3 -> N | AC43: =+Instructions!$C$22 -> 0 | AD43: 317.6 | AF43: YES | AG43: 317.6 | AH43: 0 | AI43: 317.6 | AJ43: 0 | AL43: 2 | AM43: 317.6 | AP43: 317.6 | AQ43: 0 | AR43: 0 | AU43: X
B44: Trim | E44: 0804-0166-2 | G44: 166 | J44: 50 | M44: 67 | P44: 42 | S44: 55 | W44: Stock | Y44: =IF(Suggested="Yes",'Price List'!AG44,'Price List'!AM44) -> 365 | Z44: EA | AA44: =+Instructions!$B$3 -> N | AC44: =+Instructions!$C$22 -> 0 | AD44: 365 | AF44: YES | AG44: 365 | AH44: 0 | AI44: 365 | AJ44: 0 | AL44: 2 | AM44: 365 | AP44: 365 | AQ44: 0 | AR44: 0 | AU44: X
B45: Trim | E45: 0804-0200-2 | G45: 200 | J45: 60 | M45: 80 | P45: 50 | S45: 66 | W45: Stock | Y45: =IF(Suggested="Yes",'Price List'!AG45,'Price List'!AM45) -> 410.2 | Z45: EA | AA45: =+Instructions!$B$3 -> N | AC45: =+Instructions!$C$22 -> 0 | AD45: 410.2 | AF45: YES | AG45: 410.2 | AH45: 0 | AI45: 410.2 | AJ45: 0 | AL45: 2 | AM45: 410.2 | AP45: 410.2 | AQ45: 0 | AR45: 0 | AU45: X
B46: Trim | E46: 0804-0233-2 | G46: 233 | J46: 70 | M46: 93 | P46: 58 | S46: 77 | W46: Stock | Y46: =IF(Suggested="Yes",'Price List'!AG46,'Price List'!AM46) -> 456.5 | Z46: EA | AA46: =+Instructions!$B$3 -> N | AC46: =+Instructions!$C$22 -> 0 | AD46: 456.5 | AF46: YES | AG46: 456.5 | AH46: 0 | AI46: 456.5 | AJ46: 0 | AL46: 2 | AM46: 456.5 | AP46: 456.5 | AQ46: 0 | AR46: 0 | AU46: X
B47: Trim | E47: 0804-0266-2 | G47: 266 | J47: 80 | M47: 107 | P47: 66 | S47: 88 | W47: Stock | Y47: =IF(Suggested="Yes",'Price List'!AG47,'Price List'!AM47) -> 504.8 | Z47: EA | AA47: =+Instructions!$B$3 -> N | AC47: =+Instructions!$C$22 -> 0 | AD47: 504.8 | AF47: YES | AG47: 504.8 | AH47: 0 | AI47: 504.8 | AJ47: 0 | AL47: 2 | AM47: 504.8 | AP47: 504.8 | AQ47: 0 | AR47: 0 | AU47: X
B48: Trim | E48: 0804-0299-2 | G48: 299 | J48: 90 | M48: 120 | P48: 75 | S48: 100 | W48: Stock | Y48: =IF(Suggested="Yes",'Price List'!AG48,'Price List'!AM48) -> 553.1 | Z48: EA | AA48: =+Instructions!$B$3 -> N | AC48: =+Instructions!$C$22 -> 0 | AD48: 553.1 | AF48: YES | AG48: 553.1 | AH48: 0 | AI48: 553.1 | AJ48: 0 | AL48: 2 | AM48: 553.1 | AP48: 553.1 | AQ48: 0 | AR48: 0 | AU48: X
B49: Trim | E49: 0804-0332-2 | G49: 332 | J49: 100 | M49: 133 | P49: 83 | S49: 111 | W49: Stock | Y49: =IF(Suggested="Yes",'Price List'!AG49,'Price List'!AM49) -> 598.35 | Z49: EA | AA49: =+Instructions!$B$3 -> N | AC49: =+Instructions!$C$22 -> 0 | AD49: 598.35 | AF49: YES | AG49: 598.35 | AH49: 0 | AI49: 598.35 | AJ49: 0 | AL49: 2 | AM49: 598.35 | AP49: 598.35 | AQ49: 0 | AR49: 0 | AU49: X
B50: Trim | E50: 0804-0365-2 | G50: 365 | J50: 110 | M50: 147 | P50: 91 | S50: 122 | W50: Stock | Y50: =IF(Suggested="Yes",'Price List'!AG50,'Price List'!AM50) -> 645.7 | Z50: EA | AA50: =+Instructions!$B$3 -> N | AC50: =+Instructions!$C$22 -> 0 | AD50: 645.7 | AF50: YES | AG50: 645.7 | AH50: 0 | AI50: 645.7 | AJ50: 0 | AL50: 2 | AM50: 645.7 | AP50: 645.7 | AQ50: 0 | AR50: 0 | AU50: X
B51: Trim | E51: 0804-0398-2 | G51: 398 | J51: 120 | M51: 160 | P51: 99 | S51: 133 | W51: Stock | Y51: =IF(Suggested="Yes",'Price List'!AG51,'Price List'!AM51) -> 694.1 | Z51: EA | AA51: =+Instructions!$B$3 -> N | AC51: =+Instructions!$C$22 -> 0 | AD51: 694.1 | AF51: YES | AG51: 694.1 | AH51: 0 | AI51: 694.1 | AJ51: 0 | AL51: 2 | AM51: 694.1 | AP51: 694.1 | AQ51: 0 | AR51: 0 | AU51: X
AU52: X
C53: STRATA HEAT Wire 240 V | AU53: X
AU54: X
B55: Trim | E55: 0804-0083-4 | G55: 83 | J55: 25 | M55: 33 | P55: 21 | S55: 28 | Y55: =IF(Suggested="Yes",'Price List'!AG55,'Price List'!AM55) -> 261.1 | Z55: EA | AA55: =+Instructions!$B$3 -> N | AC55: =+Instructions!$C$22 -> 0 | AD55: =ROUND($AG55*(1-AC55)+0.004999,2) -> 261.1 | AF55: YES | AG55: 261.1 | AH55: =+AC55 -> 0 | AI55: =+AD55 -> 261.1 | AJ55: =(AM55-AI55)/AM55 -> 0 | AL55: 2 | AM55: =SUM(AP55:AR55)+AK55 -> 261.1 | AP55: =ROUND(AI55/(1-VLOOKUP(AL55,Group,2,FALSE)),2) -> 261.1 | AQ55: =IF(VLOOKUP(AL55,Group,5,FALSE)="YES",VLOOKUP(ROUND(ROUND(AP55,1)-AP55,2),Round,2,FALSE)+VLOOKUP(AL55,Group,6,FALSE),0) -> 0 | AR55: =IF(VLOOKUP(AL55,Group,7,FALSE)="",0,ROUND(AP55-0.04999,1)-AP55+AS55) -> 0 | AS55: =IF(VLOOKUP(AL55,Group,7,FALSE)="","",VLOOKUP(AL55,Group,7,FALSE)) ->  | AU55: X
B56: Trim | E56: 0804-0100-4 | G56: 100 | J56: 30 | M56: 40 | P56: 25 | S56: 33 | Y56: =IF(Suggested="Yes",'Price List'!AG56,'Price List'!AM56) -> 270.35 | Z56: EA | AA56: =+Instructions!$B$3 -> N | AC56: =+Instructions!$C$22 -> 0 | AD56: =ROUND($AG56*(1-AC56)+0.004999,2) -> 270.35 | AF56: YES | AG56: 270.35 | AH56: =+AC56 -> 0 | AI56: =+AD56 -> 270.35 | AJ56: =(AM56-AI56)/AM56 -> 0 | AL56: 2 | AM56: =SUM(AP56:AR56)+AK56 -> 270.35 | AP56: =ROUND(AI56/(1-VLOOKUP(AL56,Group,2,FALSE)),2) -> 270.35 | AQ56: =IF(VLOOKUP(AL56,Group,5,FALSE)="YES",VLOOKUP(ROUND(ROUND(AP56,1)-AP56,2),Round,2,FALSE)+VLOOKUP(AL56,Group,6,FALSE),0) -> 0 | AR56: =IF(VLOOKUP(AL56,Group,7,FALSE)="",0,ROUND(AP56-0.04999,1)-AP56+AS56) -> 0 | AS56: =IF(VLOOKUP(AL56,Group,7,FALSE)="","",VLOOKUP(AL56,Group,7,FALSE)) ->  | AU56: X
B57: Trim | E57: 0804-0133-4 | G57: 133 | J57: 40 | M57: 53 | P57: 33 | S57: 44 | Y57: =IF(Suggested="Yes",'Price List'!AG57,'Price List'!AM57) -> 317.6 | Z57: EA | AA57: =+Instructions!$B$3 -> N | AC57: =+Instructions!$C$22 -> 0 | AD57: 317.6 | AF57: YES | AG57: 317.6 | AH57: 0 | AI57: 317.6 | AJ57: 0 | AL57: 2 | AM57: 317.6 | AP57: 317.6 | AQ57: 0 | AR57: 0 | AU57: X
B58: Trim | E58: 0804-0166-4 | G58: 166 | J58: 50 | M58: 67 | P58: 42 | S58: 55 | Y58: =IF(Suggested="Yes",'Price List'!AG58,'Price List'!AM58) -> 365 | Z58: EA | AA58: =+Instructions!$B$3 -> N | AC58: =+Instructions!$C$22 -> 0 | AD58: 365 | AF58: YES | AG58: 365 | AH58: 0 | AI58: 365 | AJ58: 0 | AL58: 2 | AM58: 365 | AP58: 365 | AQ58: 0 | AR58: 0 | AU58: X
B59: Trim | E59: 0804-0200-4 | G59: 200 | J59: 60 | M59: 80 | P59: 50 | S59: 66 | Y59: =IF(Suggested="Yes",'Price List'!AG59,'Price List'!AM59) -> 410.2 | Z59: EA | AA59: =+Instructions!$B$3 -> N | AC59: =+Instructions!$C$22 -> 0 | AD59: 410.2 | AF59: YES | AG59: 410.2 | AH59: 0 | AI59: 410.2 | AJ59: 0 | AL59: 2 | AM59: 410.2 | AP59: 410.2 | AQ59: 0 | AR59: 0 | AU59: X
B60: Trim | E60: 0804-0233-4 | G60: 233 | J60: 70 | M60: 93 | P60: 58 | S60: 77 | Y60: =IF(Suggested="Yes",'Price List'!AG60,'Price List'!AM60) -> 456.45 | Z60: EA | AA60: =+Instructions!$B$3 -> N | AC60: =+Instructions!$C$22 -> 0 | AD60: 456.45 | AF60: YES | AG60: 456.45 | AH60: 0 | AI60: 456.45 | AJ60: 0 | AL60: 2 | AM60: 456.45 | AP60: 456.45 | AQ60: 0 | AR60: 0 | AU60: X
B61: Trim | E61: 0804-0266-4 | G61: 266 | J61: 80 | M61: 107 | P61: 66 | S61: 88 | Y61: =IF(Suggested="Yes",'Price List'!AG61,'Price List'!AM61) -> 504.75 | Z61: EA | AA61: =+Instructions!$B$3 -> N | AC61: =+Instructions!$C$22 -> 0 | AD61: 504.75 | AF61: YES | AG61: 504.75 | AH61: 0 | AI61: 504.75 | AJ61: 0 | AL61: 2 | AM61: 504.75 | AP61: 504.75 | AQ61: 0 | AR61: 0 | AU61: X
B62: Trim | E62: 0804-0299-4 | G62: 299 | J62: 90 | M62: 120 | P62: 75 | S62: 100 | Y62: =IF(Suggested="Yes",'Price List'!AG62,'Price List'!AM62) -> 553.1 | Z62: EA | AA62: =+Instructions!$B$3 -> N | AC62: =+Instructions!$C$22 -> 0 | AD62: 553.1 | AF62: YES | AG62: 553.1 | AH62: 0 | AI62: 553.1 | AJ62: 0 | AL62: 2 | AM62: 553.1 | AP62: 553.1 | AQ62: 0 | AR62: 0 | AU62: X
B63: Trim | E63: 0804-0332-4 | G63: 332 | J63: 100 | M63: 133 | P63: 83 | S63: 111 | Y63: =IF(Suggested="Yes",'Price List'!AG63,'Price List'!AM63) -> 598.3 | Z63: EA | AA63: =+Instructions!$B$3 -> N | AC63: =+Instructions!$C$22 -> 0 | AD63: 598.3 | AF63: YES | AG63: 598.3 | AH63: 0 | AI63: 598.3 | AJ63: 0 | AL63: 2 | AM63: 598.3 | AP63: 598.3 | AQ63: 0 | AR63: 0 | AU63: X
B64: Trim | E64: 0804-0415-4 | G64: 415 | J64: 125 | M64: 167 | P64: 104 | S64: 138 | Y64: =IF(Suggested="Yes",'Price List'!AG64,'Price List'!AM64) -> 714.5 | Z64: EA | AA64: =+Instructions!$B$3 -> N | AC64: =+Instructions!$C$22 -> 0 | AD64: =ROUND($AG64*(1-AC64)+0.004999,2) -> 714.5 | AF64: YES | AG64: 714.5 | AH64: =+AC64 -> 0 | AI64: 714.5 | AJ64: =(AM64-AI64)/AM64 -> 0 | AL64: 2 | AM64: =SUM(AP64:AR64)+AK64 -> 714.5 | AP64: =ROUND(AI64/(1-VLOOKUP(AL64,Group,2,FALSE)),2) -> 714.5 | AQ64: =IF(VLOOKUP(AL64,Group,5,FALSE)="YES",VLOOKUP(ROUND(ROUND(AP64,1)-AP64,2),Round,2,FALSE)+VLOOKUP(AL64,Group,6,FALSE),0) -> 0 | AR64: =IF(VLOOKUP(AL64,Group,7,FALSE)="",0,ROUND(AP64-0.04999,1)-AP64+AS64) -> 0 | AS64: =IF(VLOOKUP(AL64,Group,7,FALSE)="","",VLOOKUP(AL64,Group,7,FALSE)) ->  | AU64: X
B65: Trim | E65: 0804-0498-4 | G65: 498 | J65: 150 | M65: 200 | P65: 124 | S65: 166 | Y65: =IF(Suggested="Yes",'Price List'!AG65,'Price List'!AM65) -> 895.35 | Z65: EA | AA65: =+Instructions!$B$3 -> N | AC65: =+Instructions!$C$22 -> 0 | AD65: 895.35 | AF65: YES | AG65: 895.35 | AH65: 0 | AI65: 895.35 | AJ65: 0 | AL65: 2 | AM65: 895.35 | AP65: 895.35 | AQ65: 0 | AR65: 0 | AU65: X
B66: Trim | E66: 0804-0581-4 | G66: 581 | J66: 175 | M66: 233 | P66: 145 | S66: 194 | Y66: =IF(Suggested="Yes",'Price List'!AG66,'Price List'!AM66) -> 985.05 | Z66: EA | AA66: =+Instructions!$B$3 -> N | AC66: =+Instructions!$C$22 -> 0 | AD66: 985.05 | AF66: YES | AG66: 985.05 | AH66: 0 | AI66: 985.05 | AJ66: 0 | AL66: 2 | AM66: 985.05 | AP66: 985.05 | AQ66: 0 | AR66: 0 | AU66: X
B67: Trim | E67: 0804-0664-4 | G67: 664 | J67: 200 | M67: 266 | P67: 166 | S67: 221 | Y67: =IF(Suggested="Yes",'Price List'!AG67,'Price List'!AM67) -> 1022.05 | Z67: EA | AA67: =+Instructions!$B$3 -> N | AC67: =+Instructions!$C$22 -> 0 | AD67: 1022.05 | AF67: YES | AG67: 1022.05 | AH67: 0 | AI67: 1022.05 | AJ67: 0 | AL67: 2 | AM67: 1022.05 | AP67: 1022.05 | AQ67: 0 | AR67: 0 | AU67: X
B68: Trim | E68: 0804-0747-4 | G68: 747 | J68: 225 | M68: 300 | P68: 187 | S68: 249 | Y68: =IF(Suggested="Yes",'Price List'!AG68,'Price List'!AM68) -> 1094.1 | Z68: EA | AA68: =+Instructions!$B$3 -> N | AC68: =+Instructions!$C$22 -> 0 | AD68: 1094.1 | AF68: YES | AG68: 1094.1 | AH68: 0 | AI68: 1094.1 | AJ68: 0 | AL68: 2 | AM68: 1094.1 | AP68: 1094.1 | AQ68: 0 | AR68: 0 | AU68: X
B69: Trim | E69: 0804-0830-4 | G69: 830 | J69: 250 | M69: 333 | P69: 207 | S69: 276 | Y69: =IF(Suggested="Yes",'Price List'!AG69,'Price List'!AM69) -> 1203.1 | Z69: EA | AA69: =+Instructions!$B$3 -> N | AC69: =+Instructions!$C$22 -> 0 | AD69: 1203.1 | AF69: YES | AG69: 1203.1 | AH69: 0 | AI69: 1203.1 | AJ69: 0 | AL69: 2 | AM69: 1203.1 | AP69: 1203.1 | AQ69: 0 | AR69: 0 | AU69: X
D71: Notes: | E71: STRATA HEAT WIRE is a versatile floor heating wire designed for use under tile and stone to provide luxury and comfort. STRATA
E72: HEAT WIRE can be used with the STRATA HEAT Mat or STRATA HEAT Spacing Strips to meet all of your floor heating needs.
E73: System allows for combination of 2 and 3 peg spacing if desired. With STRATA HEAT Wire there isn't any need to dig out the mat to
E74: burry splices between the cold lead and the heating portion of the wire or the heated wire termination. These splice-less junctions have
E75: a uniform diameter and easily fit into the STRATA HEAT Mat castellations.
AU76: X
C77: STRATA HEAT WIRE SPACING STRIPS | X77: Item # Lookup: | Y77: LTSHSPACE | AU77: X
AU78: X
B79: Trim | E79: 0802-4012-1 | G79: STRATA HEAT Wire Spacing Strip | V79: 40 LF/CTN | Y79: =IF(Suggested="Yes",'Price List'!AG79,'Price List'!AM79) -> 45.4 | Z79: CTN | AA79: =+Instructions!$B$3 -> N | AC79: =+Instructions!$C$22 -> 0 | AD79: =ROUND($AG79*(1-AC79)+0.004999,2) -> 45.4 | AF79: YES | AG79: 45.4 | AH79: =+AC79 -> 0 | AI79: =+AD79 -> 45.4 | AJ79: =(AM79-AI79)/AM79 -> 0 | AL79: 2 | AM79: =SUM(AP79:AR79)+AK79 -> 45.4 | AP79: =ROUND(AI79/(1-VLOOKUP(AL79,Group,2,FALSE)),2) -> 45.4 | AQ79: =IF(VLOOKUP(AL79,Group,5,FALSE)="YES",VLOOKUP(ROUND(ROUND(AP79,1)-AP79,2),Round,2,FALSE)+VLOOKUP(AL79,Group,6,FALSE),0) -> 0 | AR79: =IF(VLOOKUP(AL79,Group,7,FALSE)="",0,ROUND(AP79-0.04999,1)-AP79+AS79) -> 0 | AS79: =IF(VLOOKUP(AL79,Group,7,FALSE)="","",VLOOKUP(AL79,Group,7,FALSE)) ->  | AU79: X
D81: Notes: | E81: STRATA HEAT WIRE SPACING STRIPS are a 12” long interlocking plastic strip to hold the STRATA HEAT WIRE.
E82: The spacing strips can be adhered to any subfloor to provide the correct wire spacing for the STRATA HEAT WIRE.
AU83: X
C84: STRATA HEAT THERMOSTATS | X84: Item # Lookup: | Y84: LTSH | AU84: X
AU85: X
B86: Trim | E86: 0804-0404-TW | G86: Smart LCD WiFi Thermostat w/LCD Touch Screen | R86: 120V/240V Dual Voltage | W86: Stock | Y86: =IF(Suggested="Yes",'Price List'!AG86,'Price List'!AM86) -> 378 | Z86: EA | AA86: =+Instructions!$B$3 -> N | AC86: =+Instructions!$C$22 -> 0 | AD86: =ROUND($AG86*(1-AC86)+0.004999,2) -> 378 | AF86: YES | AG86: 378 | AH86: =+AC86 -> 0 | AI86: =+AD86 -> 378 | AJ86: =(AM86-AI86)/AM86 -> 0 | AL86: 2 | AM86: =SUM(AP86:AR86)+AK86 -> 378 | AP86: =ROUND(AI86/(1-VLOOKUP(AL86,Group,2,FALSE)),2) -> 378 | AQ86: =IF(VLOOKUP(AL86,Group,5,FALSE)="YES",VLOOKUP(ROUND(ROUND(AP86,1)-AP86,2),Round,2,FALSE)+VLOOKUP(AL86,Group,6,FALSE),0) -> 0 | AR86: =IF(VLOOKUP(AL86,Group,7,FALSE)="",0,ROUND(AP86-0.04999,1)-AP86+AS86) -> 0 | AS86: =IF(VLOOKUP(AL86,Group,7,FALSE)="","",VLOOKUP(AL86,Group,7,FALSE)) ->  | AU86: X
B87: Trim | E87: 0804-0403-TW | G87: Wi-Fi Thermostat w/Touch Panel LCD Display | R87: 120V/240V Dual Voltage | W87: Stock | Y87: =IF(Suggested="Yes",'Price List'!AG87,'Price List'!AM87) -> 291.7 | Z87: EA | AA87: =+Instructions!$B$3 -> N | AC87: =+Instructions!$C$22 -> 0 | AD87: =ROUND($AG87*(1-AC87)+0.004999,2) -> 291.7 | AF87: YES | AG87: 291.7 | AH87: =+AC87 -> 0 | AI87: =+AD87 -> 291.7 | AJ87: =(AM87-AI87)/AM87 -> 0 | AL87: 2 | AM87: =SUM(AP87:AR87)+AK87 -> 291.7 | AP87: =ROUND(AI87/(1-VLOOKUP(AL87,Group,2,FALSE)),2) -> 291.7 | AQ87: =IF(VLOOKUP(AL87,Group,5,FALSE)="YES",VLOOKUP(ROUND(ROUND(AP87,1)-AP87,2),Round,2,FALSE)+VLOOKUP(AL87,Group,6,FALSE),0) -> 0 | AR87: =IF(VLOOKUP(AL87,Group,7,FALSE)="",0,ROUND(AP87-0.04999,1)-AP87+AS87) -> 0 | AS87: =IF(VLOOKUP(AL87,Group,7,FALSE)="","",VLOOKUP(AL87,Group,7,FALSE)) ->  | AU87: X
B88: Trim | E88: 0804-0402-TW | G88: Programmable LCD Thermostat w/Touch Screen | R88: 120V/240V Dual Voltage | Y88: =IF(Suggested="Yes",'Price List'!AG88,'Price List'!AM88) -> 211 | Z88: EA | AA88: =+Instructions!$B$3 -> N | AC88: =+Instructions!$C$22 -> 0 | AD88: =ROUND($AG88*(1-AC88)+0.004999,2) -> 211 | AF88: YES | AG88: 211 | AH88: =+AC88 -> 0 | AI88: =+AD88 -> 211 | AJ88: =(AM88-AI88)/AM88 -> 0 | AL88: 2 | AM88: =SUM(AP88:AR88)+AK88 -> 211 | AP88: =ROUND(AI88/(1-VLOOKUP(AL88,Group,2,FALSE)),2) -> 211 | AQ88: =IF(VLOOKUP(AL88,Group,5,FALSE)="YES",VLOOKUP(ROUND(ROUND(AP88,1)-AP88,2),Round,2,FALSE)+VLOOKUP(AL88,Group,6,FALSE),0) -> 0 | AR88: =IF(VLOOKUP(AL88,Group,7,FALSE)="",0,ROUND(AP88-0.04999,1)-AP88+AS88) -> 0 | AS88: =IF(VLOOKUP(AL88,Group,7,FALSE)="","",VLOOKUP(AL88,Group,7,FALSE)) ->  | AU88: X
AU89: X
C90: STRATA HEAT THERMAL PACKS | X90: Item # Lookup: | Y90: LTSH0T0003 | AU90: X
AU91: X
B92: Trim | E92: 0802-0003-2 | G92: STRATA HEAT Thermal Pack Additive | V92: 6 PACKS/CTN | X92: a | Y92: =IF(Suggested="Yes",'Price List'!AG92,'Price List'!AM92) -> 36.85 | Z92: BAG | AA92: =+Instructions!$B$3 -> N | AC92: =+Instructions!$C$22 -> 0 | AD92: =ROUND($AG92*(1-AC92)+0.004999,2) -> 36.85 | AF92: YES | AG92: 36.85 | AH92: =+AC92 -> 0 | AI92: =+AD92 -> 36.85 | AJ92: =(AM92-AI92)/AM92 -> 0 | AL92: 2 | AM92: =SUM(AP92:AR92)+AK92 -> 36.85 | AP92: =ROUND(AI92/(1-VLOOKUP(AL92,Group,2,FALSE)),2) -> 36.85 | AQ92: =IF(VLOOKUP(AL92,Group,5,FALSE)="YES",VLOOKUP(ROUND(ROUND(AP92,1)-AP92,2),Round,2,FALSE)+VLOOKUP(AL92,Group,6,FALSE),0) -> 0 | AR92: =IF(VLOOKUP(AL92,Group,7,FALSE)="",0,ROUND(AP92-0.04999,1)-AP92+AS92) -> 0 | AS92: =IF(VLOOKUP(AL92,Group,7,FALSE)="","",VLOOKUP(AL92,Group,7,FALSE)) ->  | AU92: X
D94: Notes: | E94: The world’s first patent pending additive designed exclusively for use in LATICRETE 253 Gold, 254 Platinum & 4-XLT adhesives.
E95: Utilizing Thermal Diffusion Technology™ heat from the STRATA HEAT Wire, is uniformly distributed throughout the adhesive
E96: providing faster floor heat-up and a more comfortable and energy efficient installation. | R96: a) Mix 2 PACKS per each 50 lb. of Thinset.
AU97: X
C98: This price list is available electronically on an Excel spreadsheet at www.conestogatile.com/pricelists.
C100: The spreadsheet has many special features to assist you. Apply your discount to generate your net costs for your purchasing department. Apply your standard gross margin percentage or custom prices to generate your own custom price list for your showroom. Print out individual price list for each series that can be attached to the back of your sample boards for easy reference.
AU101: X
A102: X | B102: X | C102: X | D102: X | E102: X | F102: X | G102: X | H102: X | J102: X | L102: X | N102: X | P102: X | R102: X | T102: X | U102: X | V102: X | W102: X | X102: X | Y102: X | Z102: X | AA102: X | AB102: X | AC102: X | AD102: X | AE102: X | AF102: X | AG102: X | AH102: X | AI102: X | AJ102: X | AK102: X | AL102: X | AM102: X | AN102: X | AO102: X | AP102: X | AQ102: X | AR102: X | AS102: X | AT102: X | AU102: X
D104: $.05 Round Matrix
D105: -0.04 | E105: 0.01
D106: -0.03 | E106: 0.02
D107: -0.02 | E107: 0.03
D108: -0.01 | E108: -0.01
D109: 0 | E109: 0
D110: 0.01 | E110: 0.01
D111: 0.02 | E111: 0.02
D112: 0.03 | E112: 0.03
D113: 0.04 | E113: -0.01
D114: 0.05 | E114: 0

Sheet Websites
A1: Easy Access Website links
A3: ConestogaTile's Website | B3: http://www.cctd.com/
A5: Manufacturer's Home Page | B5: http://www.laticrete.com/
A8: Product | B8: Direct Website Link
A9: Strata Heat | B9: https://laticrete.com/en/our-products/tile-and-stone-installation/strata_heat

Sheet Changes
A1: Date
A2: Announced | B2: Series | C2: Description
A4: New Products
A5: 2008-01-01 | B5: Renaming "Floor Heat"
A6: 2014-04-21 | B6: Floor HEAT Wire
A7: 2018-03-02 | B7: Strata Heat Mat | C7: Floor Heating uncoupling mat.
A8: 2018-03-02 | B8: Strata Heat Wire 120 V & 240 V | C8: Floor Heating wire.
A9: 2018-03-02 | B9: Strata Heat Wire Spacing Strips | C9: Plastic strip to hold the Strata Heat Wire.
A10: 2018-03-02 | B10: Strata Heat Thermostats | C10: Specifically designed thermostats to work with floor heating systems.
A11: 2018-03-02 | B11: Strata Heat Thermal Packs | C11: Distributes heat throughout the adhesive.
A12: 2021-03-03 | B12: STRATA HEAT MAT | C12: Newly improved versions of the old Mat added. New pattern with same hydration vents, larger rolls & sheets: LTSH0M161, #0179-0161-H 161 SF/Roll (3' 3" x 49' 6") and LTSH0M009, #0179-1082-H 8.60 SF/Sheet (3' 3" x 2' 6.3").
A13: 2021-03-03 | B13: STRATA HEAT WIRE 120 V & 240 V | C13: The newly improved wires now have a spliceless design and single diameter throughout the length of the wire which allows for an easier installation process. No need to cut out the mat and/or the sub-floor to bury the cold lead.
A14: 2022-01-05 | B14: Strata Heat Thermostats | C14: 0804-0404-TW Smart LCD WiFi Thermostat w/LCD Touch Screen and 0804-0403-TW Wi-Fi Thermostat w/Touch Panel LCD Display. Both are 120V/240V Dual Voltage.
A15: 2024-02-07 | B15: Strata Heat Mat | C15: 0179-5082-H added that contains 50 Sheets/CTN. Each sheet is 8.60 SF/Sheet (3' 3" x 2' 6.3").
A16: 2024-10-15 | B16: Strata Heat Thermostats | C16: 0804-0402-TW Programmable LCD Thermostat w/Touch Screen, 120V/240V Dual Voltage.
A20: Discontinued Products
A21: 2009-01-01 | B21: 0800-0005-2 | C21: 15mA Thermostat, 120 VAC
A22: 2009-01-01 | B22: 0800-0009-4 | C22: 15mA Thermostat, 240 VAC
A23: 2018-03-02 | B23: Floor HEAT 120 VAC Standard Mat | C23: All 120 VAC Standard Mats, 0800-0002-2S Wire Eye, 0800-0001-2 Floor Warming Temperature Sensor & 0800-0003-2 120V/240V Dual Voltage Programmable Thermostat.
A24: 2018-03-02 | B24: Floor HEAT 240 VAC Standard Mat | C24: All 240 VAC Standard Mats, 0800-0002-2S Wire Eye, 0800-0001-2 Floor Warming Temperature Sensor & 0800-0003-2 120V/240V Dual Voltage Programmable Thermostat.
A25: 2018-03-02 | B25: LATICRETE Floor HEAT Kit 120 VAC | C25: All 120 VAC Floor Heat Kits.
A26: 2018-03-02 | B26: Floor HEAT Wire 120 VAC | C26: All sizes.
A27: 2018-03-02 | B27: Floor HEAT Wire 240 VAC | C27: All sizes.
A28: 2021-03-03 | B28: STRATA HEAT MAT | C28: LTSH0M150, #0177-0150-H 150 SF/Roll (3' 3" x 46' 2") and LTSH0M008, #0177-1084-H 8.20 SF/Sheet ( 3' 3" x 2' 5"). They will be replaced with the improved versions; see above New Product section.
A29: 2021-03-03 | B29: STRATA HEAT Wire 120 V | C29: #0802-0017-2, 17 Linear Foot Wire and #0802-0034-2, 34 Linear Foot Wire.
A30: 2022-01-05 | B30: Strata Heat Thermostats | C30: 0802-0403-T Programmable Thermostat and 0802-0404-T Wi-Fi Compatible Thermostat.
A34: Changes
A35: 2018-01-16 | B35: Floor Heat | C35: Renamed Strata Heat.
